[Event "VII Famalicao Open 2019"]
[Site "Famalicao"]
[Date "2019.07.31"]
[Round "5.12"]
[White "Romano, Joao"]
[Black "Rego, Pedro Filipe"]
[Result "1/2-1/2"]
[ECO "A46"]
[WhiteElo "2053"]
[BlackElo "2249"]
[Annotator "ChessBase"]
[PlyCount "126"]
[EventDate "2019.07.28"]
[EventType "swiss"]
[EventCountry "POR"]
[SourceTitle "playchess.com"]
[Source "ChessBase"]
[SourceQuality "1"]
[TimeControl "5400+30"]

1. d4 {[%emt 0:03:16]} Nf6 {[%emt 0:00:00]} 2. Nf3 {[%emt 0:00:29]} c5 {[%emt 0:01:35]} 3. c4 {[%emt 0:02:13]} cxd4 {[%emt 0:00:03]} 4. Nxd4 {[%emt 0:00:07]} Nc6 {[%emt 0:00:02]} 5. Nc3 {[%emt 0:04:06]} g6 {[%emt 0:00:05]} 6. g3 {[%emt 0:01:24]} d6 {[%emt 0:05:37]} 7. Bg2 {[%emt 0:00:46]} Bd7 {[%emt 0:00:07]} 8. O-O {[%emt 0:00:29]} Bg7 {[%emt 0:00:06]} 9. e3 {[%emt 0:12:57]} Qa5 {[%emt 0:02:30]} 10. Bd2 {[%emt 0:13:33]} Qb6 {[%emt 0:10:00]} 11. Nxc6 {[%emt 0:19:36]} Bxc6 {[%emt 0:01:00]} 12. b3 {[%emt 0:06:21]} h5 {[%emt 0:01:32]} 13. e4 {[%emt 0:04:37]} h4 {[%emt 0:02:38]} 14. Be3 {[%emt 0:06:44]} Qa5 {[%emt 0:13:08]} 15. Rc1 {[%emt 0:00:17]} hxg3 {[%emt 0:01:50]} 16. hxg3 {[%emt 0:00:03]} Rd8 {[%emt 0:13:42]} 17. Re1 {[%emt 0:02:38]} Ng4 {[%emt 0:01:55]} 18. Qxg4 {[%emt 0:00:51]} Bxc3 {[%emt 0:00:04]} 19. Red1 {[%emt 0:00:42]} Bb4 {[%emt 0:01:05]} 20. Qe2 {[%emt 0:03:33]} Qh5 {[%emt 0:05:18]} 21. Qxh5 {[%emt 0:00:12]} Rxh5 {[%emt 0:00:02]} 22. Bf3 {[%emt 0:02:28]} Re5 {[%emt 0:03:11]} 23. Bxa7 {[%emt 0:02:52]} Bxe4 {[%emt 0:00:12]} 24. Bxe4 {[%emt 0:00:16]} Rxe4 {[%emt 0:00:05]} 25. Be3 {[%emt 0:00:30]} Ra8 {[%emt 0:05:42]} 26. Rc2 {[%emt 0:01:11]} Ra6 {[%emt 0:01:31]} 27. Rd5 {[%emt 0:00:26]} b6 {[%emt 0:00:57]} 28. Kg2 {[%emt 0:02:40]} Kd7 {[%emt 0:02:55]} 29. Kf3 {[%emt 0:01:27]} f5 {[%emt 0:00:13]} 30. Rd4 {[%emt 0:00:40]} Re5 {[%emt 0:01:46]} 31. Rd1 {[%emt 0:01:45]} Bc5 {[%emt 0:00:40]} 32. Bd2 {[%emt 0:00:59]} Bd4 {[%emt 0:02:40]} 33. Be1 {[%emt 0:03:10]} Re4 {[%emt 0:01:01]} 34. Kg2 {[%emt 0:00:17]} Bf6 {[%emt 0:00:36]} 35. f3 {[%emt 0:00:49]} Rd4 {[%emt 0:00:47]} 36. Rxd4 {[%emt 0:00:04]} Bxd4 {[%emt 0:00:02]} 37. Bf2 {[%emt 0:01:02]} Be5 {[%emt 0:01:29]} 38. Kf1 {[%emt 0:01:01]} Kc6 {[%emt 0:00:49]} 39. Ke2 {[%emt 0:00:21]} Ra8 {[%emt 0:00:25]} 40. Rd2 {[%emt 0:00:55]} Bc3 {[%emt 0:00:53]} 41. Rc2 {[%emt 0:00:03]} Bb4 {[%emt 0:00:02]} 42. Kf1 {[%emt 0:01:46]} g5 {[%emt 0:00:32]} 43. Be3 {[%emt 0:00:59]} Rg8 {[%emt 0:00:23]} 44. Rh2 {[%emt 0:00:08]} f4 {[%emt 0:01:21]} 45. gxf4 {[%emt 0:00:40]} gxf4 {[%emt 0:00:09]} 46. Bxf4 {[%emt 0:00:31]} Rf8 {[%emt 0:00:18]} 47. Be3 {[%emt 0:00:25]} Rxf3+ {[%emt 0:00:14]} 48. Ke2 {[%emt 0:00:01]} Rg3 {[%emt 0:00:32]} 49. Kf2 {[%emt 0:00:40]} Be1+ {[%emt 0:02:32]} 50. Ke2 {[%emt 0:00:45]} Bc3 {[%emt 0:00:26]} 51. Bf2 {[%emt 0:00:49]} Rg7 {[%emt 0:00:56]} 52. Rh5 {[%emt 0:00:30]} Be5 {[%emt 0:00:19]} 53. Kf3 {[%emt 0:00:29]} b5 {[%emt 0:00:41]} 54. c5 {[%emt 0:00:37]} Rf7+ {[%emt 0:00:42]} 55. Ke2 {[%emt 0:00:01]} Rf8 {[%emt 0:01:05]} 56. cxd6 {[%emt 0:00:05]} exd6 {[%emt 0:00:08]} 57. Rh7 {[%emt 0:00:36]} b4 {[%emt 0:04:04]} 58. Be3 {[%emt 0:00:29]} Bc3 {[%emt 0:00:19]} 59. Kd3 {[%emt 0:00:54]} Rf3 {[%emt 0:00:21]} 60. Rh2 {[%emt 0:00:38]} d5 {[%emt 0:00:30]} 61. Ke2 {[%emt 0:00:16]} Rf6 {[%emt 0:00:28]} 62. Rh6 {[%emt 0:00:13]} Rxh6 {[%emt 0:01:24]} 63. Bxh6 {[%emt 0:00:02]} d4 1/2-1/2

[Event "VII Famalicao Open 2019"]
[Site "Famalicao"]
[Date "2019.07.31"]
[Round "5.13"]
[White "Branco, Ricardo Joao"]
[Black "Novais, Carlos"]
[Result "1/2-1/2"]
[ECO "C00"]
[WhiteElo "1864"]
[BlackElo "2077"]
[Annotator "NA"]
[PlyCount "62"]
[EventDate "2019.07.28"]
[EventType "swiss"]
[EventCountry "POR"]
[SourceTitle "playchess.com"]
[Source "ChessBase"]
[SourceQuality "1"]
[TimeControl "5400+30"]

1. e4 {[%emt 0:00:00]} e6 {[%emt 0:00:00]} 2. d4 {[%emt 0:00:00]} d5 {[%emt 0:00:00]} 3. Bd3 {[%emt 0:00:00]} c5 {[%emt 0:00:00]} 4. c3 {[%emt 0:02:21]} Nc6 {[%emt 0:02:01]} 5. exd5 {[%emt 0:01:02]} exd5 {[%emt 0:00:16]} 6. Nf3 {[%emt 0:00:19]} Bg4 {[%emt 0:02:51]} 7. O-O {[%emt 0:06:09]} c4 {[%emt 0:02:17]} 8. Re1+ {[%emt 0:00:36]} Be7 {[%emt 0:00:08]} 9. Bc2 {[%emt 0:00:05]} Nf6 {[%emt 0:00:22]} 10. h3 {[%emt 0:00:12]} Bh5 {[%emt 0:00:21]} 11. a4 {[%emt 0:00:19]} O-O {[%emt 0:01:24]} 12. b3 {[%emt 0:01:24]} cxb3 {[%emt 0:01:06]} 13. Bxb3 {[%emt 0:00:32]} Na5 {[%emt 0:00:14]} 14. Bc2 {[%emt 0:04:48]} Nc4 {[%emt 0:05:25]} 15. Nbd2 {[%emt 0:02:36]} Nd6 {[%emt 0:04:07]} 16. Ba3 {[%emt 0:00:17]} Rc8 {[%emt 0:00:22]} 17. Qc1 {[%emt 0:01:36]} Re8 {[%emt 0:03:22]} 18. Qb2 {[%emt 0:01:37]} Rc7 {[%emt 0:02:31]} 19. Bd3 {[%emt 0:00:23]} Bg6 {[%emt 0:04:29]} 20. Bxg6 {[%emt 0:00:36]} hxg6 {[%emt 0:00:07]} 21. Ne5 {[%emt 0:00:21]} Bf8 {[%emt 0:03:53]} 22. Rac1 {[%emt 0:01:35]} Qc8 {[%emt 0:01:11]} 23. Qb3 {[%emt 0:19:54]} Nde4 {[%emt 0:11:03]} 24. Nxe4 {[%emt 0:00:34]} Nxe4 {[%emt 0:00:09]} 25. Bxf8 {[%emt 0:00:13]} Rxf8 {[%emt 0:00:19]} 26. Qxd5 Nxc3 {[%emt 0:01:37]} 27. Rxc3 {[%emt 0:10:54]} Rxc3 {[%emt 0:00:14]} 28. Nxg6 {[%emt 0:00:03]} Rc7 {[%emt 0:03:00]} 29. Ne7+ {[%emt 0:00:09]} Rxe7 {[%emt 0:00:26]} 30. Rxe7 {[%emt 0:00:02]} Qc1+ {[%emt 0:00:09]} 31. Kh2 {[%emt 0:00:06]} Qf4+ {[%emt 0:00:01]} 1/2-1/2

[Event "VII Famalicao Open 2019"]
[Site "Famalicao"]
[Date "2019.07.31"]
[Round "5.14"]
[White "Garijo Perez, Hugo"]
[Black "Silva, Mariana Sofia T."]
[Result "1-0"]
[ECO "B27"]
[WhiteElo "1648"]
[BlackElo "1872"]
[Annotator "NA"]
[PlyCount "102"]
[EventDate "2019.07.28"]
[EventType "swiss"]
[EventCountry "POR"]
[SourceTitle "playchess.com"]
[Source "ChessBase"]
[SourceQuality "1"]
[TimeControl "5400+30"]

1. e4 {[%emt 0:00:00]} c5 {[%emt 0:03:10]} 2. Nf3 {[%emt 0:00:00]} g6 {[%emt 0:00:23]} 3. d4 {[%emt 0:00:33]} cxd4 {[%emt 0:00:05]} 4. Nxd4 {[%emt 0:00:02]} Nc6 {[%emt 0:00:11]} 5. Nc3 {[%emt 0:02:51]} Bg7 {[%emt 0:00:07]} 6. Be3 {[%emt 0:00:05]} Nf6 {[%emt 0:00:09]} 7. Bc4 {[%emt 0:05:40]} O-O {[%emt 0:00:08]} 8. Bb3 {[%emt 0:06:29]} Re8 {[%emt 0:00:11]} 9. f3 {[%emt 0:03:18]} e6 {[%emt 0:00:48]} 10. O-O {[%emt 0:06:04]} d5 {[%emt 0:03:12]} 11. exd5 {[%emt 0:01:19]} exd5 {[%emt 0:01:28]} 12. Bf2 {[%emt 0:00:09]} Ne5 {[%emt 0:13:39]} 13. Re1 {[%emt 0:09:01]} Nc4 {[%emt 0:13:17]} 14. Rxe8+ {[%emt 0:18:42]} Nxe8 {[%emt 0:04:40]} 15. Qe2 {[%emt 0:03:42]} Nb6 {[%emt 0:03:31]} 16. Rd1 {[%emt 0:00:59]} Nc7 {[%emt 0:01:25]} 17. Bg3 {[%emt 0:04:11]} Ne6 {[%emt 0:05:39]} 18. Nxe6 {[%emt 0:01:18]} Bxe6 {[%emt 0:05:21]} 19. Be5 {[%emt 0:02:01]} Rc8 {[%emt 0:07:22]} 20. Bxg7 {[%emt 0:05:08]} Kxg7 {[%emt 0:01:31]} 21. Qe5+ {[%emt 0:00:28]} Qf6 {[%emt 0:01:27]} 22. Qd4 {[%emt 0:00:19]} Qxd4+ {[%emt 0:04:10]} 23. Rxd4 {[%emt 0:00:09]} Kf6 {[%emt 0:00:53]} 24. Nd1 {[%emt 0:03:11]} Ke5 {[%emt 0:05:44]} 25. c3 {[%emt 0:00:07]} g5 {[%emt 0:05:23]} 26. Nf2 {[%emt 0:02:21]} Bf5 {[%emt 0:02:29]} 27. Nd1 {[%emt 0:03:12]} h5 {[%emt 0:03:29]} 28. Ne3 {[%emt 0:01:11]} Be6 {[%emt 0:00:08]} 29. g3 {[%emt 0:00:28]} Rg8 {[%emt 0:02:05]} 30. Kf2 {[%emt 0:00:57]} f6 {[%emt 0:02:49]} 31. h4 {[%emt 0:06:23]} Rc8 {[%emt 0:03:07]} 32. Ng2 {[%emt 0:02:07]} Bf7 {[%emt 0:02:03]} 33. f4+ {[%emt 0:00:44]} gxf4 {[%emt 0:00:31]} 34. Nxf4 {[%emt 0:00:11]} Nc4 {[%emt 0:04:07]} 35. Bxc4 {[%emt 0:01:28]} dxc4 {[%emt 0:00:47]} 36. Rd7 {[%emt 0:01:26]} Be8 {[%emt 0:01:31]} 37. Rxb7 {[%emt 0:00:22]} Bc6 {[%emt 0:00:46]} 38. Rxa7 {[%emt 0:03:55]} Rb8 {[%emt 0:00:25]} 39. Re7+ {[%emt 0:00:05]} Kf5 {[%emt 0:00:30]} 40. Re2 {[%emt 0:00:06]} Kg4 {[%emt 0:00:32]} 41. Ng2 {[%emt 0:03:33]} Bxg2 {[%emt 0:00:45]} 42. Kxg2 {[%emt 0:00:09]} Rd8 {[%emt 0:00:07]} 43. Re4+ {[%emt 0:02:09]} Kf5 {[%emt 0:00:07]} 44. Rd4 {[%emt 0:00:16]} Rb8 {[%emt 0:00:53]} 45. Rd2 {[%emt 0:00:46]} Ke4 {[%emt 0:00:38]} 46. Kf2 {[%emt 0:00:32]} Rb5 {[%emt 0:00:31]} 47. Ke2 {[%emt 0:01:02]} Rb8 {[%emt 0:00:23]} 48. a3 {[%emt 0:01:26]} Rb7 {[%emt 0:00:23]} 49. Rd4+ {[%emt 0:01:05]} Ke5 {[%emt 0:00:09]} 50. Rxc4 {[%emt 0:00:21]} Rxb2+ {[%emt 0:00:04]} 51. Kf3 {[%emt 0:00:18]} f5 {[%emt 0:01:01]} 1-0

[Event "VII Famalicao Open 2019"]
[Site "Famalicao"]
[Date "2019.08.01"]
[Round "7.14"]
[White "Garijo Perez, Hugo"]
[Black "Forgas Moreno, Yaniela"]
[Result "1-0"]
[ECO "B90"]
[WhiteElo "1648"]
[BlackElo "2272"]
[Annotator "RC"]
[PlyCount "112"]
[EventDate "2019.07.28"]
[EventType "swiss"]
[EventCountry "POR"]
[SourceTitle "playchess.com"]
[Source "ChessBase"]
[SourceQuality "1"]
[TimeControl "5400+30"]

1. e4 {[%emt 0:01:54]} c5 {[%emt 0:01:43]} 2. Nf3 {[%emt 0:00:07]} d6 {[%emt 0:00:06]} 3. d4 {[%emt 0:00:09]} cxd4 {[%emt 0:00:06]} 4. Nxd4 {[%emt 0:00:06]} Nf6 {[%emt 0:00:05]} 5. Nc3 {[%emt 0:00:06]} a6 {[%emt 0:00:04]} 6. Rg1 {[%emt 0:00:05]} e5 {[%emt 0:05:16]} 7. Nb3 {[%emt 0:00:08]} Be6 {[%emt 0:00:15]} 8. g4 {[%emt 0:01:25]} d5 {[%emt 0:00:07]} 9. g5 {[%emt 0:03:19]} Nxe4 {[%emt 0:00:37]} 10. Nxe4 {[%emt 0:00:06]} dxe4 {[%emt 0:00:27]} 11. Qxd8+ {[%emt 0:00:08]} Kxd8 {[%emt 0:00:03]} 12. Bg2 {[%emt 0:00:07]} Bf5 {[%emt 0:01:01]} 13. Be3 {[%emt 0:02:16]} Kc7 {[%emt 0:00:30]} 14. Nd2 {[%emt 0:01:21]} Nc6 {[%emt 0:02:03]} 15. c3 {[%emt 0:03:22]} Ne7 {[%emt 0:07:52]} 16. Bxe4 {[%emt 0:02:02]} Bxe4 {[%emt 0:00:11]} 17. Nxe4 {[%emt 0:00:19]} Nd5 {[%emt 0:00:06]} 18. O-O-O {[%emt 0:00:36]} Kc6 {[%emt 0:06:59]} 19. Rd2 {[%emt 0:05:08]} Be7 {[%emt 0:03:55]} 20. c4 {[%emt 0:04:39]} Nc7 {[%emt 0:04:14]} 21. Rgd1 {[%emt 0:02:20]} Rad8 {[%emt 0:02:13]} 22. Rxd8 {[%emt 0:01:13]} Rxd8 {[%emt 0:01:09]} 23. Rxd8 {[%emt 0:00:22]} Bxd8 {[%emt 0:00:05]} 24. Kc2 {[%emt 0:03:20]} Ne6 {[%emt 0:00:50]} 25. Kd3 {[%emt 0:01:15]} Be7 {[%emt 0:01:00]} 26. a3 {[%emt 0:02:41]} a5 {[%emt 0:02:46]} 27. Kc3 {[%emt 0:06:57]} f5 {[%emt 0:04:18]} 28. gxf6 {[%emt 0:00:26]} gxf6 {[%emt 0:00:06]} 29. Ng3 {[%emt 0:00:44]} a4 {[%emt 0:00:41]} 30. f3 {[%emt 0:06:17]} Bf8 {[%emt 0:06:10]} 31. h4 {[%emt 0:03:21]} Nd8 {[%emt 0:04:03]} 32. h5 {[%emt 0:06:27]} Nf7 {[%emt 0:00:25]} 33. Kd3 {[%emt 0:06:08]} Nd6 {[%emt 0:22:52]} 34. c5 {[%emt 0:12:44]} Nb5 {[%emt 0:00:29]} 35. Kc4 {[%emt 0:00:23]} Nc7 {[%emt 0:00:06]} 36. Ne4 {[%emt 0:01:21]} Nd5 {[%emt 0:00:08]} 37. Bf2 {[%emt 0:01:03]} Bh6 {[%emt 0:04:12]} 38. Nc3 {[%emt 0:04:45]} Nxc3 {[%emt 0:00:21]} 39. Kxc3 {[%emt 0:00:13]} Kd5 {[%emt 0:00:34]} 40. Kb4 {[%emt 0:02:07]} Bc1 {[%emt 0:01:36]} 41. Kc3 {[%emt 0:01:07]} f5 {[%emt 0:00:30]} 42. Kc2 {[%emt 0:00:27]} Bg5 {[%emt 0:00:37]} 43. b4 {[%emt 0:01:39]} axb3+ {[%emt 0:05:32]} 44. Kxb3 {[%emt 0:00:10]} Be7 {[%emt 0:00:37]} 45. Kb4 {[%emt 0:01:53]} Kc6 {[%emt 0:07:41]} 46. Kc4 {[%emt 0:01:26]} Bg5 {[%emt 0:00:32]} 47. Bg3 {[%emt 0:04:05]} e4 {[%emt 0:00:38]} 48. f4 {[%emt 0:01:53]} Bf6 {[%emt 0:00:16]} 49. Bf2 {[%emt 0:00:22]} Bb2 {[%emt 0:00:32]} 50. Be3 {[%emt 0:00:17]} Bxa3 {[%emt 0:00:11]} 51. h6 {[%emt 0:02:21]} Bb2 {[%emt 0:00:19]} 52. Kb3 {[%emt 0:02:30]} Bf6 {[%emt 0:00:11]} 53. Kc4 {[%emt 0:00:06]} Be7 {[%emt 0:00:16]} 54. Bd2 {[%emt 0:02:52]} Bxc5 {[%emt 0:00:17]} 55. Be1 {[%emt 0:00:16]} b5+ {[%emt 0:00:14]} 56. Kb3 {[%emt 0:00:06]} Bf8 {[%emt 0:00:14]} 1-0

[Event "VII Famalicao Open 2019"]
[Site "Famalicao"]
[Date "2019.08.02"]
[Round "8.9"]
[White "Fernandes, Miguel"]
[Black "Rodrigues, Afonso"]
[Result "1-0"]
[ECO "D15"]
[WhiteElo "2118"]
[BlackElo "2134"]
[Annotator "ChessBase"]
[PlyCount "61"]
[EventDate "2019.07.28"]
[EventType "swiss"]
[EventCountry "POR"]
[SourceTitle "playchess.com"]
[Source "ChessBase"]
[SourceQuality "1"]
[TimeControl "5400+30"]

1. d4 {[%emt 0:00:00]} d5 {[%emt 0:00:00]} 2. c4 {[%emt 0:00:00]} c6 {[%emt 0:00:00]} 3. Nc3 {[%emt 0:00:14]} Nf6 {[%emt 0:00:00]} 4. Nf3 {[%emt 0:00:17]} a6 {[%emt 0:00:00]} 5. cxd5 {[%emt 0:00:47]} cxd5 {[%emt 0:00:00]} 6. Bf4 {[%emt 0:01:03]} Nc6 {[%emt 0:00:39]} 7. e3 {[%emt 0:01:03]} Bf5 {[%emt 0:17:35]} 8. Nh4 {[%emt 0:02:44]} Bc8 {[%emt 0:13:58]} 9. Bd3 {[%emt 0:02:07]} h6 {[%emt 0:08:45]} 10. Nf3 {[%emt 0:03:01]} g5 {[%emt 0:00:34]} 11. Bg3 {[%emt 0:03:04]} Bg7 {[%emt 0:00:29]} 12. Ne5 {[%emt 0:02:23]} Nd7 {[%emt 0:25:05]} 13. Nxc6 {[%emt 0:04:37]} bxc6 {[%emt 0:01:22]} 14. Rc1 {[%emt 0:03:36]} e5 {[%emt 0:03:52]} 15. dxe5 {[%emt 0:01:56]} Nxe5 {[%emt 0:00:19]} 16. O-O {[%emt 0:01:15]} O-O {[%emt 0:03:44]} 17. Na4 {[%emt 0:01:40]} Bd7 {[%emt 0:09:36]} 18. b3 {[%emt 0:01:43]} Qe7 {[%emt 0:00:21]} 19. Nb6 {[%emt 0:01:44]} Ra7 {[%emt 0:00:31]} 20. Nxd7 {[%emt 0:00:40]} Qxd7 {[%emt 0:00:21]} 21. Bxe5 {[%emt 0:00:48]} Bxe5 {[%emt 0:00:06]} 22. Qc2 {[%emt 0:00:24]} Rc7 {[%emt 0:02:12]} 23. Bxa6 {[%emt 0:04:03]} c5 {[%emt 0:01:41]} 24. Qe2 {[%emt 0:04:00]} Qd6 {[%emt 0:03:16]} 25. g3 {[%emt 0:00:44]} f5 {[%emt 0:00:36]} 26. Rfd1 {[%emt 0:03:34]} Kh8 {[%emt 0:01:23]} 27. Bc4 {[%emt 0:02:52]} d4 {[%emt 0:01:00]} 28. f4 {[%emt 0:02:46]} Bf6 {[%emt 0:01:30]} 29. Rd3 {[%emt 0:04:57]} Re7 {[%emt 0:00:33]} 30. Qf3 {[%emt 0:03:34]} Rxe3 {[%emt 0:01:00]} 31. Qxe3 {[%emt 0:00:28]} 1-0

[Event "VII Famalicao Open 2019"]
[Site "Famalicao"]
[Date "2019.08.02"]
[Round "8.10"]
[White "Forgas Moreno, Yaniela"]
[Black "Guimaraes, Alvaro"]
[Result "1-0"]
[ECO "C11"]
[WhiteElo "2272"]
[BlackElo "1796"]
[Annotator "ChessBase"]
[PlyCount "45"]
[EventDate "2019.07.28"]
[EventType "swiss"]
[EventCountry "POR"]
[SourceTitle "playchess.com"]
[Source "ChessBase"]
[SourceQuality "1"]
[TimeControl "5400+30"]

1. e4 {[%emt 0:00:00]} e6 {[%emt 0:00:00]} 2. d4 {[%emt 0:00:00]} d5 {[%emt 0:00:02]} 3. Nc3 {[%emt 0:00:00]} Nf6 {[%emt 0:00:07]} 4. e5 {[%emt 0:00:00]} Nfd7 {[%emt 0:00:07]} 5. f4 {[%emt 0:00:05]} c5 {[%emt 0:00:05]} 6. Nf3 {[%emt 0:00:06]} Nc6 {[%emt 0:00:05]} 7. Be3 {[%emt 0:00:04]} a6 {[%emt 0:01:01]} 8. Qd2 {[%emt 0:00:37]} b5 {[%emt 0:06:23]} 9. Be2 {[%emt 0:00:38]} Qc7 {[%emt 0:02:38]} 10. Nd1 {[%emt 0:02:08]} cxd4 {[%emt 0:01:39]} 11. Nxd4 {[%emt 0:00:04]} Bc5 {[%emt 0:12:59]} 12. c3 {[%emt 0:00:53]} O-O {[%emt 0:00:29]} 13. O-O {[%emt 0:02:09]} Bb7 {[%emt 0:05:02]} 14. b4 {[%emt 0:06:10]} Bxd4 {[%emt 0:03:11]} 15. Bxd4 {[%emt 0:01:26]} Rac8 {[%emt 0:03:02]} 16. Bd3 {[%emt 0:02:57]} Nb6 {[%emt 0:03:54]} 17. Bc5 {[%emt 0:14:14]} Ne7 {[%emt 0:01:47]} 18. Bd6 {[%emt 0:00:48]} Qd7 {[%emt 0:00:14]} 19. Qf2 {[%emt 0:00:57]} Nc4 {[%emt 0:01:55]} 20. Bxh7+ {[%emt 0:01:33]} Kxh7 {[%emt 0:01:54]} 21. Qh4+ {[%emt 0:00:04]} Kg8 {[%emt 0:00:35]} 22. Bxe7 {[%emt 0:00:09]} Rfe8 {[%emt 0:00:53]} 23. Bf6 {[%emt 0:01:49]} 1-0

[Event "VII Famalicao Open 2019"]
[Site "Famalicao"]
[Date "2019.08.02"]
[Round "8.11"]
[White "Monteiro, Paulo"]
[Black "Pintor, Simao"]
[Result "0-1"]
[ECO "A08"]
[WhiteElo "1737"]
[BlackElo "2082"]
[Annotator "NA"]
[PlyCount "70"]
[EventDate "2019.07.28"]
[EventType "swiss"]
[EventCountry "POR"]
[SourceTitle "playchess.com"]
[Source "ChessBase"]
[SourceQuality "1"]
[TimeControl "5400+30"]

1. Nf3 {[%emt 0:00:54]} d5 {[%emt 0:00:00]} 2. g3 {[%emt 0:00:13]} c5 {[%emt 0:00:00]} 3. Bg2 {[%emt 0:00:20]} Nc6 4. O-O {[%emt 0:00:39]} Nf6 {[%emt 0:00:00]} 5. d4 {[%emt 0:00:31]} e6 {[%emt 0:00:34]} 6. c3 {[%emt 0:05:50]} Bd6 {[%emt 0:01:11]} 7. Bf4 {[%emt 0:02:52]} Qc7 {[%emt 0:03:07] D02: 1 d4 d5 2 Nf3 sidelines, including 2...Nf6 3 g3 and 2...Nf6 3 Bf4} 8. Bxd6 {[%emt 0:04:38]} Qxd6 {[%emt 0:00:26]} 9. Nbd2 {[%emt 0:00:54]} O-O {[%emt 0:01:36]} 10. Re1 {[%emt 0:06:32]} e5 $146 {[%emt 0:02:49]} ({Predecessor:} 10... cxd4 11. cxd4 Bd7 12. a3 {0-1 (51) Vladimirov,Y (2585)-Psakhis,L (2570) Moscow 1992}) 11. dxe5 {[%emt 0:00:28]} Nxe5 {[%emt 0:00:05]} 12. Nxe5 {[%emt 0:02:08]} Qxe5 {[%emt 0:00:05]} 13. e4 {[%emt 0:01:11]} Bg4 {[%emt 0:10:04]} ({Better is} 13... dxe4 $1 $14 14. Nxe4 Nxe4) 14. exd5 {[%emt 0:08:03] Discovered Attack} Qh5 {[%emt 0:07:04]} 15. Qb3 {[%emt 0:11:28]} Rad8 {[%emt 0:12:58]} 16. c4 {[%emt 0:07:39]} Rd6 {[%emt 0:02:55]} (16... b6 $142 17. Qa4 Qf5) 17. Nf1 {[%emt 0:08:18]} Bh3 {[%emt 0:05:48]} 18. Bxh3 {[%emt 0:05:15]} Qxh3 {[%emt 0:00:08]} 19. Qf3 {[%emt 0:00:09]} Ng4 {[%emt 0:02:33]} 20. Qg2 {[%emt 0:01:20]} Qh5 {[%emt 0:00:05]} 21. Ne3 {[%emt 0:04:10]} (21. b3 $18) 21... Ne5 {[%emt 0:01:02]} 22. g4 {[%emt 0:05:31]} Nxg4 {[%emt 0:05:23]} 23. Nxg4 {[%emt 0:00:05]} Rg6 {[%emt 0:00:04]} 24. h3 {[%emt 0:00:17]} f5 {[%emt 0:00:06]} 25. f3 {[%emt 0:00:18]} Qg5 {[%emt 0:09:21] [#] Pin} 26. Re2 {[%emt 0:01:19]} (26. Rad1 $1 $16 Qf4 {[%mdl 64] Pin} 27. Rf1) 26... Qf4 {[%emt 0:01:09] Pin} 27. Rc2 $11 {[%emt 0:04:58]} h5 {[%emt 0:01:06] Pin} 28. Rf1 {[%emt 0:01:03]} fxg4 {[%emt 0:06:46]} 29. fxg4 {[%emt 0:00:18]} Qd4+ {[%emt 0:05:07]} 30. Kh1 {[%emt 0:01:29]} Rxf1+ {[%emt 0:00:06]} 31. Qxf1 {[%emt 0:00:05]} hxg4 {[%emt 0:00:54]} 32. Rg2 Qe4 {[%emt 0:04:53]} 33. hxg4 {[%emt 0:04:21]} Rh6+ {[%emt 0:02:51]} 34. Kg1 {[%emt 0:00:09]} Qd4+ {[%emt 0:00:29]} 35. Qf2 {[%emt 0:02:52]} Qd1+ {[%emt 0:00:13]} 0-1

[Event "VII Famalicao Open 2019"]
[Site "Famalicao"]
[Date "2019.08.02"]
[Round "8.12"]
[White "Santos, Jose Miguel Sereno"]
[Black "Leonardo, Joao"]
[Result "1/2-1/2"]
[ECO "B07"]
[WhiteElo "1702"]
[BlackElo "2227"]
[Annotator "ChessBase"]
[PlyCount "105"]
[EventDate "2019.07.28"]
[EventType "swiss"]
[EventCountry "POR"]
[SourceTitle "playchess.com"]
[Source "ChessBase"]
[SourceQuality "1"]
[TimeControl "5400+30"]

1. e4 {[%emt 0:04:00]} d6 {[%emt 0:00:00]} 2. d4 {[%emt 0:00:06]} Nf6 {[%emt 0:00:00]} 3. Nc3 {[%emt 0:00:10]} Nc6 {[%emt 0:00:00]} 4. Nf3 {[%emt 0:00:25]} Bg4 {[%emt 0:00:00]} 5. Be2 {[%emt 0:00:11]} e5 {[%emt 0:00:10]} 6. Be3 {[%emt 0:01:46]} Be7 {[%emt 0:00:12]} 7. O-O {[%emt 0:01:44]} O-O {[%emt 0:00:12]} 8. h3 {[%emt 0:02:47]} Bh5 {[%emt 0:00:05]} 9. a4 {[%emt 0:03:38]} a6 {[%emt 0:00:41]} 10. Qd2 {[%emt 0:02:05]} Re8 {[%emt 0:00:30]} 11. Rfd1 {[%emt 0:02:48]} Bg6 {[%emt 0:00:59]} 12. Bd3 {[%emt 0:01:43]} Bf8 {[%emt 0:00:18]} 13. dxe5 {[%emt 0:01:39]} dxe5 {[%emt 0:00:50]} 14. Qc1 {[%emt 0:01:32]} Qc8 {[%emt 0:03:09]} 15. Nh4 {[%emt 0:22:16]} Nb4 {[%emt 0:02:01]} 16. Nxg6 {[%emt 0:00:53]} Nxd3 {[%emt 0:00:37]} 17. cxd3 {[%emt 0:01:44]} hxg6 {[%emt 0:00:09]} 18. Qc2 {[%emt 0:00:18]} Qe6 {[%emt 0:03:25]} 19. d4 {[%emt 0:05:26]} exd4 {[%emt 0:01:59]} 20. Bxd4 {[%emt 0:00:35]} c6 {[%emt 0:00:27]} 21. a5 {[%emt 0:00:52]} Rad8 {[%emt 0:00:09]} 22. f3 {[%emt 0:01:11]} Rxd4 {[%emt 0:01:40]} 23. Rxd4 {[%emt 0:00:03]} Bc5 {[%emt 0:00:03]} 24. Ne2 {[%emt 0:00:09]} Qe5 {[%emt 0:00:03]} 25. Qc3 {[%emt 0:01:18]} Rd8 {[%emt 0:01:20]} 26. Rad1 {[%emt 0:01:12]} Nh5 {[%emt 0:03:15]} 27. g4 {[%emt 0:00:09]} Nf4 {[%emt 0:01:44]} 28. Kh1 {[%emt 0:00:32]} Bxd4 {[%emt 0:00:53]} 29. Rxd4 {[%emt 0:00:05]} Rxd4 {[%emt 0:04:56]} 30. Qxd4 {[%emt 0:00:22]} Qxd4 {[%emt 0:00:20]} 31. Nxd4 {[%emt 0:00:03]} Nxh3 {[%emt 0:00:07]} 32. Nb3 {[%emt 0:00:35]} Nf2+ {[%emt 0:00:09]} 33. Kg2 {[%emt 0:00:06]} Nd3 {[%emt 0:00:03]} 34. Kf1 {[%emt 0:00:15]} Kf8 {[%emt 0:01:20]} 35. Ke2 {[%emt 0:00:11]} Nf4+ {[%emt 0:02:02]} 36. Ke3 {[%emt 0:00:13]} Ne6 {[%emt 0:00:02]} 37. f4 {[%emt 0:00:52]} Ke7 {[%emt 0:00:03]} 38. f5 {[%emt 0:00:07]} gxf5 {[%emt 0:00:03]} 39. gxf5 {[%emt 0:00:08]} Nd8 {[%emt 0:00:19]} 40. Kd4 {[%emt 0:01:18]} f6 {[%emt 0:00:18]} 41. Kc5 {[%emt 0:01:17]} Nf7 {[%emt 0:06:55]} 42. Kb6 {[%emt 0:00:44]} Nd6 {[%emt 0:00:13]} 43. Nc5 {[%emt 0:00:07]} Nc4+ {[%emt 0:02:47]} 44. Kxb7 {[%emt 0:00:09]} Nxa5+ {[%emt 0:00:07]} 45. Kb6 {[%emt 0:00:05]} Nc4+ {[%emt 0:00:08]} 46. Kxc6 {[%emt 0:00:03]} Nxb2 {[%emt 0:00:09]} 47. Nxa6 {[%emt 0:00:07]} Nd1 {[%emt 0:00:21]} 48. Nc7 {[%emt 0:02:23]} Nf2 {[%emt 0:00:31]} 49. Kd5 {[%emt 0:00:28]} Ng4 {[%emt 0:00:19]} 50. Ne6 {[%emt 0:01:12]} Kf7 {[%emt 0:00:13]} 51. Nf4 {[%emt 0:05:39]} Ne5 {[%emt 0:00:27]} 52. Ne6 {[%emt 0:00:31]} Nd3 {[%emt 0:00:28]} 53. Kd4 {[%emt 0:04:29]} 1/2-1/2